[Event "FIDE Candidates Tournament 2022"]
[Site "Madrid"]
[Date "2022.06.17"]
[Round "1.3"]
[White "Caruana, Fabiano"]
[Black "Nakamura, Hikaru"]
[Result "1-0"]
[ECO "C65"]
[WhiteElo "2786"]
[BlackElo "2760"]
[Annotator "TA"]
[PlyCount "99"]
[EventDate "2022.06.17"]
[EventType "tourn"]
[EventCountry "ESP"]
[SourceTitle "playchess.com"]
[Source "ChessBase"]
[SourceQuality "1"]
[TimeControl "40/7200:20/3600:900+30"]

{[%evp 9,99,21,22,16,24,18,24,-2,20,17,18,21,12,12,34,34,34,31,29,43,36,40,37,34,29,0,0,0,0,0,0,-14,-13,-6,23,22,27,33,26,30,84,70,84,80,78,70,70,70,87,97,91,90,88,97,119,134,147,139,265,126,139,103,92,0,130,135,279,270,278,135,516,267,220,0,104,82,200,200,200,200,251,251,1025,979,903,814,1222,1220,29986,29987,29987,29988]} 1. e4 {[%emt 0:00:03]} e5 {[%emt 0:00:07]} 2. Nf3 {[%emt 0:00:06]} Nc6 {[%emt 0:00:07]} 3. Bb5 {[%emt 0:00:06]} Nf6 {[%emt 0:00:10]} 4. d3 {[%emt 0:00:14]} Bc5 {[%emt 0:00:06]} 5. Bxc6 {[%emt 0:00:11]} dxc6 {[%emt 0:00:05]} 6. Nbd2 {[%emt 0:00:19][%cal Bb1d2,Bd2b3,Bb3a5][%mdl 32] C65: Ruy Lopez: Berlin Defence (3...Nf6), unusual lines and 4 0-0 Bc5.} Be6 {[%emt 0:00:10]} 7. O-O {[%emt 0:00:26]} Bd6 {[%emt 0:00:14]} 8. Nb3 {[%emt 0:00:10] White has an edge.} (8. b3 O-O 9. Nc4 Nd7 10. a4 Bxc4 11. bxc4 a5 12. Bg5 Be7 13. Be3 b6 14. h3 Bd6 15. g3 Be7 {½-½ (52) Caruana,F (2828)-Nakamura,H (2749) Chess.com INT 2019}) 8... Qe7 {[%emt 0:11:18]} 9. Na5 {[%emt 0:00:41] [#]} Rb8 $146 {[%emt 0:03:46]} ({Predecessor:} 9... O-O-O 10. Bd2 Bg4 11. Rb1 Nd7 12. Nc4 Qf6 13. b4 Nf8 14. h3 Bxf3 15. Qxf3 Qxf3 16. gxf3 {0-1 (51) Robson,R (2667)-Dominguez Perez,L (2739) Saint Louis 2019}) 10. Bg5 {[%emt 0:11:59][%cal Bc1g5,Bg5h4,Bh4g3][%mdl 32]} h6 {[%emt 0:03:06]} 11. Bh4 {[%emt 0:00:34]} g5 {[%emt 0:02:03]} 12. Bg3 {[%emt 0:00:07]} Nd7 {[%emt 0:00:10]} 13. d4 {[%emt 0:14:40][%cal Rd4e5]} f6 {[%emt 0:01:34]} 14. Qd3 {[%emt 0:13:11]} h5 {[%emt 0:06:46]} 15. dxe5 {[%emt 0:10:58]} Nxe5 {[%emt 0:04:01]} 16. Bxe5 {[%emt 0:02:29]} fxe5 {[%emt 0:01:41]} 17. Nc4 {[%emt 0:00:05]} (17. Qc3 {is interesting.} O-O 18. Nxe5 Qg7 19. Nf3) 17... Rd8 {[%emt 0:14:03]} 18. Nxd6+ {[%emt 0:04:14]} cxd6 {[%emt 0:01:00]} 19. Qe3 {[%emt 0:00:16][%csl LRa7,LRg5]} g4 {[%emt 0:00:20]} 20. Nd2 {[%emt 0:00:43]} a6 {[%emt 0:02:16]} 21. b3 {[%emt 0:07:59]} O-O {[%emt 0:07:19]} 22. f3 {[%emt 0:01:11]} Qg7 {[%emt 0:01:16]} 23. fxg4 {[%emt 0:02:58]} hxg4 {[%emt 0:07:22]} 24. Rad1 {[%emt 0:03:39]} d5 {[%emt 0:13:01]} (24... Rd7 $11 {keeps the balance.}) 25. exd5 $16 {[%emt 0:02:24]} cxd5 {[%emt 0:00:11]} 26. Rde1 {[%emt 0:01:24]} e4 {[%emt 0:08:20]} 27. Rxf8+ {[%emt 0:10:49]} Rxf8 {[%emt 0:00:58]} 28. c4 {[%emt 0:00:17]} Re8 {[%emt 0:04:31]} 29. cxd5 {[%emt 0:01:01]} Bxd5 {[%emt 0:00:04]} 30. Nf1 {[%emt 0:00:39]} Qe5 {[%emt 0:03:51]} 31. Qh6 {[%emt 0:08:24]} Qg7 {[%emt 0:02:07] Prevents Qg6.} 32. Qd6 {[%emt 0:03:54]} Bc6 {[%emt 0:10:19]} 33. Ne3 {[%emt 0:00:19]} g3 {[%emt 0:02:15]} (33... Rf8 $16 34. Qe6+ Kh7) 34. hxg3 {[%emt 0:04:34]} (34. Qxg3 Qxg3 35. hxg3 Kg7 $14) (34. Rf1 $1 $18 {and the rest is easy.} Rf8 35. Rxf8+ (35. hxg3 Rxf1+ 36. Nxf1 Qa1 $16) (35. Qxg3 Qxg3 36. hxg3 Rxf1+ 37. Nxf1 Kg7 $16) 35... Qxf8 36. Qxg3+ Kh7 37. h3 (37. Qg5 Qh6 $18)) 34... Qe5 {[%emt 0:00:40] Against Nf5} 35. Qg6+ {[%emt 0:05:39]} Qg7 {[%emt 0:00:04]} 36. Qd6 {[%emt 0:00:02] Hoping for Nf5. White is more active.} Qe5 {[%emt 0:00:17] Prevents Nf5.} 37. Qh6 {[%emt 0:01:11] And now Rf1 would win.} (37. Qg6+ Qg7 38. Qh5 Qxg3 $14) 37... Qxg3 {[%emt 0:02:04]} (37... Rf8 $16 {might work better.}) 38. Rf1 $18 {[%emt 0:00:21] Intending Nf5 and mate. Chess con chili.} Qg7 {[%emt 0:00:04]} 39. Qh4 {[%emt 0:00:04]} (39. Qd6 $18 {has better winning chances.} Qe7 40. Qf4) 39... Qh7 {[%emt 0:00:31][%mdl 8192]} (39... Bd7 $16 {is more resistant.} 40. Rd1 Re7) 40. Qg3+ {[%emt 0:00:00]} Qg7 {[%emt 0:00:00] [#]} 41. Qh4 $40 {[%emt 0:07:39][%mdl 128] Black needs to defend precisely.} (41. Qd6 $1 $18 Qe7 42. Qf4 (42. Qg6+ Qg7 $18)) 41... Bd7 {[%emt 0:07:12]} (41... Qh7 $1 $11 {remains equal.} 42. Qf4 Kh8) 42. Rd1 {[%emt 0:21:32]} Be6 {[%emt 0:07:47] [#] Inhibits Rd5.} (42... Re7 $16 {was worth a try.}) 43. Nd5 $1 {[%emt 0:05:23] Strongly threatening Nf6+.} (43. Qxe4 $6 Qg5 $16) 43... Rf8 {[%emt 0:02:44] Against Nf6+} (43... Bxd5 $2 44. Rxd5 Qa1+ 45. Kh2 $18) 44. Qxe4 {[%emt 0:00:06]} ({Resist} 44. Ne7+ Kf7 45. Nd5 (45. Qxe4 Qg4 $14) (45. Rd6 $2 Qa1+ 46. Kf2 e3+ 47. Ke2 Qb2+ 48. Kxe3 Qe5+ 49. Qe4 Qxd6 $19) 45... Bg4 46. Rf1+ (46. Re1 Ke6 $14) 46... Ke6 47. Rxf8 Qxf8 $16) 44... Qh6 {[%emt 0:05:32]} 45. Re1 {[%emt 0:04:37]} Rd8 $2 {[%emt 0:05:40]} (45... Bxd5 46. Qxd5+ Kh8 47. Qxb7 (47. Re7 Qc1+ 48. Kh2 Qh6+ 49. Kg1 Qc1+ 50. Kh2 Qh6+ 51. Kg1 $11) 47... Qh4) 46. Ne7+ {[%emt 0:01:28]} ({Not} 46. Qxe6+ Qxe6 47. Rxe6 Rxd5 $18) 46... Kf7 {[%emt 0:00:13]} 47. Nf5 {[%emt 0:00:18]} Qf6 {[%emt 0:00:49]} 48. Rf1 {[%emt 0:02:03]} Bd5 {[%emt 0:00:29]} 49. Nh6+ {[%emt 0:01:27]} Kg7 {[%emt 0:00:15]} 50. Qg4+ {[%emt 0:00:10] Weighted Error Value: White=0.22 (precise) /Black=0.56} 1-0

[Event "FIDE Candidates Tournament 2022"]
[Site "Madrid"]
[Date "2022.06.19"]
[Round "3.2"]
[White "Caruana, Fabiano"]
[Black "Duda, Jan-Krzysztof"]
[Result "1/2-1/2"]
[ECO "B90"]
[WhiteElo "2786"]
[BlackElo "2750"]
[Annotator "TA"]
[PlyCount "102"]
[EventDate "2022.06.17"]
[EventType "tourn"]
[EventCountry "ESP"]
[SourceTitle "playchess.com"]
[Source "ChessBase"]
[SourceQuality "1"]
[TimeControl "40/7200:20/3600:900+30"]

{[%evp 20,102,15,11,20,7,16,18,23,13,5,15,11,13,17,17,13,4,13,17,13,0,0,0,0,0,0,0,0,0,0,-3,-3,-5,-6,-6,0,0,-2,-2,-2,-2,-2,-2,-2,-2,0,0,0,0,0,-2,0,0,0,0,0,0,0,0,0,0,0,0,0,0,0,0,0,0,0,0,0,-8,-8,-8,-8,-8,-8,-8,-8,-8,-8,-8,0]} 1. e4 {[%emt 0:00:03]} c5 {[%emt 0:00:05]} 2. Nf3 {[%emt 0:00:06]} d6 {[%emt 0:00:04]} 3. d4 {[%emt 0:00:12]} cxd4 {[%emt 0:00:06]} 4. Nxd4 {[%emt 0:00:03]} Nf6 {[%emt 0:00:08]} 5. Nc3 {[%emt 0:00:05]} a6 {[%emt 0:00:05]} 6. f3 {[%emt 0:00:22]} e5 {[%emt 0:00:13]} 7. Nb3 {[%emt 0:00:05]} Be6 {[%emt 0:00:05]} 8. Be3 {[%emt 0:00:35]} h5 {[%emt 0:00:08]} 9. Qd2 {[%emt 0:00:33]} Nbd7 {[%emt 0:00:13]} 10. O-O-O {[%emt 0:00:43]} Be7 {[%emt 0:08:05]} 11. Kb1 {[%emt 0:01:07]} b5 {[%emt 0:01:55] 11...Rc8 is more fashionable. B90: Sicilian Najdorf: Unusual White 6th moves, 6 Be3 Ng4 and 6 Be3 e5.} 12. Nd5 {[%emt 0:04:32]} Bxd5 {[%emt 0:00:45]} 13. exd5 {[%emt 0:00:06]} Nb6 {[%emt 0:00:44] Against c4} 14. Bxb6 {[%emt 0:08:49]} Qxb6 {[%emt 0:00:26] The position is equal.} 15. Na5 {[%emt 0:00:52]} Rc8 {[%emt 0:01:21]} 16. Nc6 {[%emt 0:20:08]} Nxd5 {[%emt 0:00:54]} 17. Nxe7 {[%emt 0:00:15]} Nxe7 {[%emt 0:00:05]} 18. Qxd6 {[%emt 0:00:04]} Qxd6 {[%emt 0:00:16]} 19. Rxd6 {[%emt 0:00:05]} Nc6 $1 {[%emt 0:00:08]} 20. Rd2 {[%emt 0:00:54][%cal Oa2a4]} Ke7 {[%emt 0:02:28]} 21. Bd3 {[%emt 0:00:32][%cal Oa2a4]} Rhd8 {[%emt 0:06:41]} 22. Rhd1 {[%emt 0:00:31]} g6 {[%emt 0:09:15]} 23. c3 {[%emt 0:01:44][%cal Oa2a4]} Na5 {[%emt 0:07:58] [#]} 24. Re2 $146 {[%emt 0:13:24]} ({Predecessor:} 24. Kc2 f5 25. a4 Nc4 26. Re2 Kf6 27. axb5 axb5 28. Ra1 Nd6 29. Kb3 Rc6 30. Ra5 {0-1 (37) Jens,J (2376)-Le,Q (2687) Mulhouse 2011}) 24... Kf6 {[%emt 0:02:05]} 25. h4 {[%emt 0:00:57]} Nb7 {[%emt 0:06:48]} 26. Red2 {[%emt 0:08:14]} Nc5 {[%emt 0:01:37]} 27. Bf1 {[%emt 0:11:26]} Rxd2 {[%emt 0:00:42]} 28. Rxd2 $11 {[%emt 0:00:03][%mdl 4096] Endgame KRB-KRN} Ke6 {[%emt 0:13:01]} 29. c4 {[%emt 0:12:43]} b4 {[%emt 0:00:56]} 30. Kc2 {[%emt 0:00:07]} a5 {[%emt 0:11:48]} 31. b3 {[%emt 0:00:49]} Nb7 {[%emt 0:02:52]} 32. g3 {[%emt 0:11:23]} Rd8 {[%emt 0:03:16]} 33. Rxd8 {[%emt 0:03:29]} Nxd8 {[%emt 0:00:17] KB-KN} 34. Kd3 {[%emt 0:00:06]} Nb7 {[%emt 0:03:41]} 35. Ke3 {[%emt 0:01:49]} Nc5 {[%emt 0:01:00]} 36. f4 {[%emt 0:04:55]} a4 {[%emt 0:18:57]} 37. bxa4 {[%emt 0:00:25]} Nxa4 {[%emt 0:00:20]} 38. c5 {[%emt 0:01:08]} exf4+ {[%emt 0:00:33]} 39. gxf4 {[%emt 0:00:47]} Nxc5 {[%emt 0:00:15]} 40. Kd4 {[%emt 0:00:00]} Kd6 {[%emt 0:00:00]} 41. Kc4 {[%emt 0:18:24]} Ne6 {[%emt 0:09:38]} 42. f5 {[%emt 0:02:26]} gxf5 {[%emt 0:00:09]} 43. Be2 {[%emt 0:00:20]} Nf4 {[%emt 0:00:26]} 44. Bf3 {[%emt 0:00:25]} Ng6 {[%emt 0:00:23] [#] And now ...Ne5+ would win.} 45. Bxh5 {[%emt 0:00:13]} Nxh4 {[%emt 0:00:06]} 46. Bxf7 {[%emt 0:00:13]} f4 {[%emt 0:00:05]} 47. Bh5 {[%emt 0:00:10]} f3 {[%emt 0:00:04]} 48. Bxf3 {[%emt 0:00:03]} Nxf3 {[%emt 0:00:05]} 49. Kxb4 {[%emt 0:00:02]} Nd4 {[%emt 0:00:06]} 50. a3 {[%emt 0:00:03]} Nc2+ {[%emt 0:00:04]} 51. Kb3 {[%emt 0:00:02]} Nxa3 {[%emt 0:58:38] An even fight not without its subleties.  Weighted Error Value: White=0.01 (flawless) /Black=0.00 (flawless)} 1/2-1/2

[Event "FIDE Candidates Tournament 2022"]
[Site "Madrid"]
[Date "2022.06.22"]
[Round "5.1"]
[White "Caruana, Fabiano"]
[Black "Rapport, Richard"]
[Result "1/2-1/2"]
[ECO "B46"]
[WhiteElo "2786"]
[BlackElo "2776"]
[Annotator "TA"]
[PlyCount "47"]
[EventDate "2022.06.17"]
[EventType "tourn"]
[EventCountry "ESP"]
[SourceTitle "playchess.com"]
[Source "ChessBase"]
[SourceQuality "1"]
[TimeControl "40/7200:20/3600:900+30"]

{[%evp 9,47,14,27,0,0,0,0,0,0,-1,6,18,19,10,14,8,10,-6,-19,-16,-8,-27,0,-43,0,-5,0,0,0,0,0,0,0,0,0,0,0,0,0,0]} 1. e4 {[%emt 0:00:03]} c5 {[%emt 0:00:57]} 2. Nf3 {[%emt 0:00:12]} e6 {[%emt 0:00:08]} 3. d4 {[%emt 0:00:05]} cxd4 {[%emt 0:00:07]} 4. Nxd4 {[%emt 0:00:03]} Nc6 {[%emt 0:00:08]} (4... Nf6 5. Nc3 Nc6 6. Nxc6 bxc6 7. e5 Nd5 8. Ne4 Bb7 9. c4 Nb4 10. c5 Qb8 11. f4 Ba6 12. Be2 Bxe2 13. Qxe2 Qb5 14. Qxb5 cxb5 15. Ke2 Nd5 16. Bd2 a5 {½-½ (51) Caruana,F (2786)-Rapport,R (2776) Bucharest 2022}) 5. Nc3 {[%emt 0:00:08]} a6 {[%emt 0:00:49]} 6. g4 {[%emt 0:09:55] B46: Sicilian: Taimanov: 5 Nc3 a6.} Nge7 {[%emt 0:02:17]} 7. Be3 {[%emt 0:03:18]} b5 {[%emt 0:00:33]} 8. Nb3 {[%emt 0:16:31]} Na5 {[%emt 0:05:22] [#]} 9. Qd2 $146 {[%emt 0:04:31]} ({Predecessor:} 9. g5 Nec6 10. Bg2 Nc4 11. Bc1 Be7 12. h4 Bb7 13. Qe2 Rc8 14. O-O h6 15. gxh6 gxh6 {0-1 (30) Hansen,S (2558)-Andersson,U (2623) Germany 2000}) 9... Nxb3 {[%emt 0:16:52]} 10. axb3 {[%emt 0:01:05]} Bb7 {[%emt 0:00:12]} 11. Bg2 {[%emt 0:01:43]} Ng6 {[%emt 0:02:44]} 12. Rf1 {[%emt 0:06:52]} Bc6 {[%emt 0:12:41]} 13. g5 {[%emt 0:15:08]} a5 {[%emt 0:22:53][%cal Ba6a5,Ba5a4,Ba4a3,Ba3b2][%mdl 32]} 14. f4 {[%emt 0:01:07]} a4 {[%emt 0:05:39] Black wants to play ...axb3.} 15. Rd1 {[%emt 0:01:53]} Bb4 {[%emt 0:15:30]} 16. Qd4 {[%emt 0:08:22][%csl LRb4,LRg7]} Qa5 {[%emt 0:00:12]} (16... Bxc3+ $5 17. Qxc3 (17. bxc3 O-O $17) 17... O-O $11) 17. Qxg7 {[%emt 0:04:29] The position is equal.} a3 {[%emt 0:01:09]} 18. Kf2 {[%emt 0:04:58][%cal Oc3d5] Threatens to win with Nd5!} axb2 {[%emt 0:00:07]} 19. Ne2 {[%emt 0:00:06] [#] f5 is the strong threat.} e5 {[%emt 0:00:31]} 20. f5 {[%emt 0:07:05]} Bf8 {[%emt 0:00:22]} 21. Qf6 {[%emt 0:00:05]} Be7 {[%emt 0:00:04]} 22. Qg7 {[%emt 0:00:07] The board is on fire.} Bf8 {[%emt 0:00:16]} 23. Qf6 {[%emt 0:00:06]} Be7 {[%emt 0:00:04]} 24. Qg7 {[%emt 0:00:02] An even fight not without its subleties.  Weighted Error Value: White=0.07 (flawless) /Black=0.05 (flawless)} 1/2-1/2

[Event "FIDE Candidates Tournament 2022"]
[Site "Madrid"]
[Date "2022.06.25"]
[Round "7.4"]
[White "Caruana, Fabiano"]
[Black "Radjabov, Teimour"]
[Result "1-0"]
[ECO "B28"]
[WhiteElo "2786"]
[BlackElo "2753"]
[Annotator "TA"]
[PlyCount "111"]
[EventDate "2022.06.17"]
[EventType "tourn"]
[EventCountry "ESP"]
[SourceTitle "playchess.com"]
[Source "ChessBase"]
[SourceQuality "1"]
[TimeControl "40/7200:20/3600:900+30"]

{[%evp 10,111,32,39,37,42,45,30,41,24,27,17,37,20,44,48,42,36,74,70,80,76,76,70,74,65,60,45,40,43,52,59,62,58,54,53,53,54,54,47,81,79,94,92,116,95,79,101,64,65,112,113,114,104,131,131,141,144,182,159,175,175,182,168,182,165,156,139,126,130,337,346,304,289,380,371,444,438,427,425,408,416,385,380,399,370,346,243,573,543,852,484,479,480,435,435,29963,29965,29959,29960,10297,6087,1983,1515]} 1. e4 {[%emt 0:00:04]} c5 {[%emt 0:00:04]} 2. Nf3 {[%emt 0:00:06]} a6 {[%emt 0:00:03]} 3. c4 {[%emt 0:09:05]} Nc6 {[%emt 0:00:35]} 4. d4 {[%emt 0:02:58]} cxd4 {[%emt 0:00:32]} 5. Nxd4 {[%emt 0:00:04]} e5 {[%emt 0:00:13]} 6. Nf5 {[%emt 0:15:56]} d5 {[%emt 0:00:24] B28: Sicilian: 2 Nf3 a6 (O'Kelly Variation).} 7. cxd5 {[%emt 0:02:10]} Bxf5 {[%emt 0:00:22]} 8. exf5 {[%emt 0:00:20]} Nd4 {[%emt 0:00:25] White has an edge.} 9. Bd3 {[%emt 0:04:05]} Qxd5 {[%emt 0:02:35]} 10. Nc3 {[%emt 0:12:21]} Qd7 {[%emt 0:03:38]} (10... Qxg2 $2 11. Be4 Qh3 12. Qa4+ (12. Bxb7 Rd8 $16) 12... b5 13. Nxb5 Nxb5 14. Bxa8 $18) 11. O-O {[%emt 0:02:07][%cal Bh1f1,Bf1e1,Be1e5,Be5d5][%mdl 32]} Nf6 {[%emt 0:10:37]} 12. Bg5 {[%emt 0:08:31]} Be7 $1 {[%emt 0:07:41]} 13. Re1 {[%emt 0:03:36] [#]} O-O-O $146 {[%emt 0:26:31]} ({Predecessor:} 13... Nc6 14. Bxf6 Bxf6 15. Be4 Rd8 16. Nd5 Bg5 17. Qh5 Be7 18. Rad1 Nd4 19. f6 gxf6 20. Rxd4 exd4 21. Bf3 {1-0 (21) Schrancz,I-Roth,E Hungary 1969}) 14. Rxe5 {[%emt 0:12:47]} Nc6 {[%emt 0:02:44][%csl LRd3,LRe5]} 15. Bxf6 {[%emt 0:01:40] White is more active.} Bxf6 {[%emt 0:01:19]} (15... Nxe5 $2 16. Bxe5 Qxd3 17. Qc1 $18) 16. Rd5 {[%emt 0:00:45]} Qe7 {[%emt 0:01:36]} 17. Bc4 {[%emt 0:04:53]} Kb8 {[%emt 0:06:42]} 18. Qd3 {[%emt 0:08:16]} Qb4 {[%emt 0:09:33]} 19. Bb3 {[%emt 0:03:06]} Nd4 {[%emt 0:01:32]} 20. Qc4 {[%emt 0:05:26]} (20. Qe4 {with more complications.} Rde8 21. Qf4+ Ka7 22. Kf1) 20... Qxc4 {[%emt 0:09:10]} 21. Bxc4 {[%emt 0:01:04]} Rc8 {[%emt 0:02:11]} 22. Bd3 {[%emt 0:02:21]} Nc6 {[%emt 0:03:04]} 23. Be4 {[%emt 0:00:16]} Rhe8 {[%emt 0:07:24] And now ...Bxc3 would win.} 24. f3 {[%emt 0:00:11]} Re7 {[%emt 0:00:03]} 25. Rad1 {[%emt 0:04:17]} h6 {[%emt 0:09:38]} 26. Kf2 {[%emt 0:02:20]} Rcc7 {[%emt 0:04:25]} 27. R5d2 {[%emt 0:02:15]} Bxc3 {[%emt 0:00:33]} 28. bxc3 {[%emt 0:00:03]} Ne5 {[%emt 0:00:03]} 29. Rc1 {[%emt 0:01:04]} f6 {[%emt 0:00:13]} (29... Rc5 $14) 30. Kg3 $16 {[%emt 0:00:45]} Ka7 {[%emt 0:01:54]} 31. Rd4 {[%emt 0:00:19]} Rc5 {[%emt 0:00:17]} 32. Kh4 {[%emt 0:00:39]} Rec7 {[%emt 0:00:04]} 33. Kh5 {[%emt 0:01:05]} b5 {[%emt 0:00:24]} 34. f4 {[%emt 0:00:57]} Nd7 {[%emt 0:01:30]} 35. Rcd1 {[%emt 0:01:08]} Nb6 {[%emt 0:00:22]} 36. R1d3 {[%emt 0:00:05]} Na4 {[%emt 0:00:10]} 37. Kg6 {[%emt 0:00:42] Black must now prevent Rd7.} Nxc3 {[%emt 0:00:04]} 38. Bf3 {[%emt 0:00:24] Inhibits Ne2. Threatens to win with Rd7.} Nxa2 {[%emt 0:00:18]} 39. Rd7 $36 {[%emt 0:00:39][%mdl 2048] Strongly threatening Kxg7. White is really pushing.} Nc3 $2 {[%emt 0:00:17] A mistake that costs the game.} (39... Nb4 $16 {is a better defense.} 40. Rd1 Kb8) 40. Kxg7 $18 {[%emt 0:00:00]} ({Less strong is} 40. Rxg7 b4 $16) 40... b4 {[%emt 0:00:00]} 41. Kxf6 {[%emt 0:06:39]} b3 {[%emt 0:01:57] [#] ...b2 is the strong threat.} 42. Rd2 {[%emt 0:04:58]} a5 {[%emt 0:05:33]} 43. Ke6 {[%emt 0:08:16]} Rxd7 {[%emt 0:07:17]} 44. Rxd7+ {[%emt 0:00:05][%mdl 4096] Endgame KRB-KRN} Ka6 {[%emt 0:00:05] aiming for ...b2.} 45. f6 {[%emt 0:07:19] Hoping for f7.} b2 {[%emt 0:11:54]} 46. f7 {[%emt 0:00:05]} b1=Q {[%emt 0:05:33]} 47. f8=Q {[%emt 0:00:22] Against Qf5+} Qg6+ {[%emt 0:00:38]} 48. Qf6 {[%emt 0:15:21] Chess con chili.} Qe8+ {[%emt 0:09:13] [#]} (48... Qxf6+ 49. Kxf6 a4) 49. Kd6 $1 {[%emt 0:06:46]} Rc4 {[%emt 0:04:19]} 50. Rc7 {[%emt 0:01:49]} Kb5 {[%emt 0:09:14]} 51. Qe5+ {[%emt 0:02:25]} Qxe5+ {[%emt 0:00:06]} 52. fxe5 {[%emt 0:00:02][%cal Bf4e5,Be5e6,Be6e7][%mdl 32] White threatens Rxc4 and mate.} Rxc7 {[%emt 0:02:25]} (52... Rd4+ $18 53. Ke6 Kb4 54. Rb7+ Kc5) 53. Kxc7 {[%emt 0:00:03]} Kc5 {[%emt 0:00:30]} 54. e6 {[%emt 0:00:32]} Nb5+ {[%emt 0:01:16]} 55. Kd7 {[%emt 0:00:06]} a4 {[%emt 0:00:13]} 56. e7 {[%emt 0:00:41] Weighted Error Value: White=0.12 (very precise) /Black=0.32} 1-0

[Event "FIDE Candidates Tournament 2022"]
[Site "Madrid"]
[Date "2022.06.27"]
[Round "9.3"]
[White "Caruana, Fabiano"]
[Black "Nepomniachtchi, Ian"]
[Result "1/2-1/2"]
[ECO "C42"]
[WhiteElo "2786"]
[BlackElo "2773"]
[Annotator "TA"]
[PlyCount "80"]
[EventDate "2022.06.17"]
[EventType "tourn"]
[EventCountry "ESP"]
[SourceTitle "playchess.com"]
[Source "ChessBase"]
[SourceQuality "1"]
[TimeControl "40/7200:20/3600:900+30"]

{[%evp 18,80,22,15,28,14,16,0,22,22,19,0,0,0,35,25,23,25,21,18,74,65,76,77,75,73,64,68,68,68,62,29,34,32,33,19,45,47,42,32,23,0,0,0,0,-10,-8,-38,-21,-27,-15,-12,-12,-12,-13,-15,0,0,0,0,0,0,0,0,0]} 1. e4 {[%emt 0:00:03]} e5 {[%emt 0:00:07]} 2. Nf3 {[%emt 0:00:05]} Nf6 {[%emt 0:00:05]} 3. Nxe5 {[%emt 0:00:05]} d6 {[%emt 0:00:05]} 4. Nf3 {[%emt 0:00:05]} Nxe4 {[%emt 0:00:06]} 5. d4 {[%emt 0:00:04]} d5 {[%emt 0:00:05]} 6. Bd3 {[%emt 0:00:06]} Bd6 {[%emt 0:00:40]} 7. O-O {[%emt 0:00:20]} O-O {[%emt 0:00:05]} 8. c4 {[%emt 0:00:09]} c6 {[%emt 0:00:06]} 9. Re1 {[%emt 0:00:28]} Bf5 {[%emt 0:00:07]} 10. Qb3 {[%emt 0:00:20]} Qd7 {[%emt 0:00:36] The modern move. C42: Petroff Defence: 3 Nxe5 and unusual White 3rd moves.} 11. Nh4 {[%emt 0:00:27] [#]} Be6 $146 {[%emt 0:08:47]} ({Predecessor:} 11... dxc4 12. Qxc4 Be6 13. Qc2 Nf6 14. Bg5 Be7 15. Nf5 Bd8 16. Nc3 Nd5 17. Bxd8 Rxd8 18. Re5 {0-1 (52) Rozman,M (1708)-Belsak,Z (1653) Murska Sobota 2006}) 12. Qc2 {[%emt 0:00:28]} Na6 {[%emt 0:07:18]} 13. a3 {[%emt 0:00:17] Against Nb4} f5 {[%emt 0:07:36]} 14. cxd5 {[%emt 0:00:38]} cxd5 {[%emt 0:02:33]} 15. Nc3 {[%emt 0:00:13][%cal Bb1c3,Bc3d5,Bd5e7,Be7f5][%mdl 32]} Rac8 {[%emt 0:02:06]} 16. f3 {[%emt 0:01:41]} Be7 {[%emt 0:17:08]} 17. g3 {[%emt 0:00:23]} Nd6 {[%emt 0:07:13]} 18. Qa4 {[%emt 0:32:29] [#] Hoping for Qxd7.} Bf6 {[%emt 0:07:02]} (18... Rc6 $1 $11 {remains equal.}) 19. Qxd7 $16 {[%emt 0:10:25]} Bxd7 {[%emt 0:00:39]} 20. Nxd5 {[%emt 0:08:46] aiming for Bf4.} Bxd4+ {[%emt 0:00:20]} 21. Kg2 {[%emt 0:02:44] And now Ne7+ would win.} Rce8 {[%emt 0:16:10]} 22. Bf4 {[%emt 0:12:44]} Nc5 {[%emt 0:00:34]} 23. Ne7+ {[%emt 0:08:26]} Kf7 $1 {[%emt 0:00:20] [#]} 24. Bxf5 {[%emt 0:18:55] White is more active.} Nxf5 {[%emt 0:01:17]} 25. Nhxf5 {[%emt 0:01:20]} Bxf5 {[%emt 0:02:59]} 26. Nxf5 {[%emt 0:00:04]} Rxe1 {[%emt 0:00:31]} 27. Rxe1 {[%emt 0:00:02]} Nd3 $1 {[%emt 0:02:43]} 28. Re4 {[%emt 0:12:54]} (28. Re7+ {looks sharper.} Kf6 29. Bd6 Kxf5 30. Re4) 28... Bxb2 {[%emt 0:01:04]} ({Resist} 28... Nxf4+ 29. Rxf4 Bf6 30. Nd6+ Ke7 31. Nxb7 $16) 29. Be3 {[%emt 0:00:48]} Bxa3 {[%emt 0:03:29]} 30. Bxa7 {[%emt 0:00:03]} Ra8 {[%emt 0:01:27]} 31. Bd4 {[%emt 0:00:18]} Bf8 {[%emt 0:00:28]} 32. Re2 {[%emt 0:01:40]} g6 {[%emt 0:03:49]} 33. Ne3 {[%emt 0:00:01]} Rd8 {[%emt 0:00:12]} 34. Bb6 {[%emt 0:00:21] The position is equal.} Rd6 {[%emt 0:01:36]} 35. Nc4 {[%emt 0:00:06]} Rc6 {[%emt 0:03:15]} 36. Re4 {[%emt 0:00:02]} Bg7 {[%emt 0:00:47]} 37. f4 {[%emt 0:00:31]} Re6 {[%emt 0:01:39]} 38. Kf3 {[%emt 0:00:34]} Ne1+ {[%emt 0:01:02]} 39. Ke3 {[%emt 0:00:03]} Nc2+ {[%emt 0:00:22]} 40. Kf3 {[%emt 0:00:00]} Ne1+ {[%emt 0:00:00] Weighted Error Value: White=0.06 (flawless) /Black=0.06 (flawless)} 1/2-1/2